[Event "Titled Tuesday Blitz October 19 2021"]
[White "Babiy, Olga"]
[Black "Nguyen, Ngoc Truong Son"]
[WhiteFideId "14117258"]
[BlackFideId "12401110"]
[WhiteElo "2192"]
[BlackElo "2596"]
[Result "0-1"]
[Round "01"]
[TimeControl "180+1"]
[Date "2021.10.19"]
[WhiteClock "0:00:02"]
[BlackClock "0:01:12"]

1. Nf3 {[%clk 0:03:00]}  Nf6 {[%clk 0:02:59]} 2. g3 {[%clk 0:03:01]}  g6 {[%clk 0:02:59]} 3. Bg2 {[%clk 0:03:01]}  Bg7 {[%clk 0:02:59]} 4. O-O {[%clk 0:03:01]}  O-O {[%clk 0:03:00]} 5. d4 {[%clk 0:03:00]}  d6 {[%clk 0:03:01]} 6. Nc3 {[%clk 0:02:56]}  Nbd7 {[%clk 0:03:00]} 7. e4 {[%clk 0:02:55]}  e5 {[%clk 0:02:58]} 8. Re1 {[%clk 0:02:50]}  c6 {[%clk 0:02:54]} 9. h3 {[%clk 0:02:49]}  Qc7 {[%clk 0:02:53]} 10. Bg5 {[%clk 0:02:47]}  h6 {[%clk 0:02:52]} 11. Be3 {[%clk 0:02:47]}  b5 {[%clk 0:02:51]} 12. a3 {[%clk 0:02:42]}  a6 {[%clk 0:02:50]} 13. Qd2 {[%clk 0:02:42]}  Kh7 {[%clk 0:02:49]} 14. Rad1 {[%clk 0:02:37]}  Bb7 {[%clk 0:02:44]} 15. dxe5 {[%clk 0:02:35]}  dxe5 {[%clk 0:02:45]} 16. Qd6 {[%clk 0:02:35]}  Qxd6 {[%clk 0:02:44]} 17. Rxd6 {[%clk 0:02:36]}  Rfd8 {[%clk 0:02:37]} 18. Red1 {[%clk 0:02:36]}  Bf8 {[%clk 0:02:37]} 19. R6d2 {[%clk 0:02:32]}  Be7 {[%clk 0:02:35]} 20. Ne1 {[%clk 0:02:12]}  c5 {[%clk 0:02:26]} 21. f4 {[%clk 0:02:09]}  b4 {[%clk 0:02:23]} 22. axb4 {[%clk 0:02:08]}  cxb4 {[%clk 0:02:24]} 23. Nd5 {[%clk 0:02:09]}  Bxd5 {[%clk 0:02:24]} 24. exd5 {[%clk 0:02:10]}  e4 {[%clk 0:02:20]} 25. d6 {[%clk 0:02:02]}  Bf8 {[%clk 0:02:20]} 26. g4 {[%clk 0:02:01]}  Re8 {[%clk 0:02:17]} 27. Rd4 {[%clk 0:02:01]}  a5 {[%clk 0:02:09]} 28. g5 {[%clk 0:02:01]}  hxg5 {[%clk 0:02:09]} 29. fxg5 {[%clk 0:02:02]}  Nh5 {[%clk 0:02:09]} 30. Rxe4 {[%clk 0:02:02]}  Rxe4 {[%clk 0:02:07]} 31. Bxe4 {[%clk 0:02:03]}  Re8 {[%clk 0:02:07]} 32. Rd4 {[%clk 0:02:02]}  Bg7 {[%clk 0:02:03]} 33. Rc4 {[%clk 0:02:02]}  f5 {[%clk 0:01:59]} 34. Bc6 {[%clk 0:01:36]}  Rxe3 {[%clk 0:01:59]} 35. Kf2 {[%clk 0:01:27]}  Re6 {[%clk 0:01:57]} 36. Bxd7 {[%clk 0:01:25]}  Rxd6 {[%clk 0:01:57]} 37. Bb5 {[%clk 0:01:13]}  Bxb2 {[%clk 0:01:56]} 38. Nd3 {[%clk 0:01:11]}  Bd4+ {[%clk 0:01:46]} 39. Kf3 {[%clk 0:01:05]}  Bb6 {[%clk 0:01:44]} 40. Rc8 {[%clk 0:00:52]}  Ng7 {[%clk 0:01:41]} 41. Bc4 {[%clk 0:00:37]}  Ne6 {[%clk 0:01:41]} 42. h4 {[%clk 0:00:35]}  Nd4+ {[%clk 0:01:35]} 43. Kg2 {[%clk 0:00:35]}  Nxc2 {[%clk 0:01:33]} 44. Bg8+ {[%clk 0:00:23]}  Kg7 {[%clk 0:01:32]} 45. Nf4 {[%clk 0:00:15]}  Nd4 {[%clk 0:01:15]} 46. h5 {[%clk 0:00:12]}  gxh5 {[%clk 0:01:13]} 47. Nxh5+ {[%clk 0:00:12]}  Kg6 {[%clk 0:01:13]} 48. Nf4+ {[%clk 0:00:06]}  Kxg5 {[%clk 0:01:14]} 49. Nh3+ {[%clk 0:00:05]}  Kf6 {[%clk 0:01:14]} 50. Bc4 {[%clk 0:00:03]}  Rc6 {[%clk 0:01:12]} 51. Rxc6+ {[%clk 0:00:02]}  Nxc6 {[%clk 0:01:12]} 52. Nf4 {[%clk 0:00:02]}  Ke5 {[%clk 0:01:12]} 0-1


[Site "https://www.chess.com"]

[Event "Titled Tuesday Blitz October 19 2021"]
[White "Bazeev, German"]
[Black "Klabis, Rokas"]
[WhiteFideId "24119350"]
[BlackFideId "12805246"]
[WhiteElo "2462"]
[BlackElo "2255"]
[Result "1/2-1/2"]
[Round "01"]
[TimeControl "180+1"]
[Date "2021.10.19"]
[WhiteClock "0:00:36"]
[BlackClock "0:00:40"]

1. d4 {[%clk 0:03:00]}  Nf6 {[%clk 0:02:59]} 2. Nf3 {[%clk 0:03:01]}  e6 {[%clk 0:02:59]} 3. c4 {[%clk 0:03:02]}  b6 {[%clk 0:02:59]} 4. Nc3 {[%clk 0:03:01]}  Bb7 {[%clk 0:02:58]} 5. Bg5 {[%clk 0:03:02]}  Be7 {[%clk 0:02:57]} 6. e3 {[%clk 0:03:01]}  Ne4 {[%clk 0:02:57]} 7. Bxe7 {[%clk 0:02:57]}  Qxe7 {[%clk 0:02:58]} 8. Nxe4 {[%clk 0:02:58]}  Bxe4 {[%clk 0:02:57]} 9. Be2 {[%clk 0:02:58]}  O-O {[%clk 0:02:57]} 10. O-O {[%clk 0:02:58]}  c5 {[%clk 0:02:57]} 11. dxc5 {[%clk 0:02:55]}  bxc5 {[%clk 0:02:47]} 12. Nd2 {[%clk 0:02:54]}  Bb7 {[%clk 0:02:40]} 13. Qa4 {[%clk 0:02:46]}  Bc6 {[%clk 0:02:39]} 14. Qc2 {[%clk 0:02:44]}  d6 {[%clk 0:02:39]} 15. Bf3 {[%clk 0:02:42]}  Qb7 {[%clk 0:02:34]} 16. Rfd1 {[%clk 0:02:41]}  Bxf3 {[%clk 0:02:29]} 17. Nxf3 {[%clk 0:02:42]}  Rd8 {[%clk 0:02:30]} 18. Ng5 {[%clk 0:02:40]}  g6 {[%clk 0:02:29]} 19. Ne4 {[%clk 0:02:38]}  Qc6 {[%clk 0:02:07]} 20. Nf6+ {[%clk 0:02:31]}  Kg7 {[%clk 0:02:02]} 21. Qc3 {[%clk 0:02:32]}  e5 {[%clk 0:02:02]} 22. Nd5 {[%clk 0:02:29]}  Nd7 {[%clk 0:02:02]} 23. Rd2 {[%clk 0:02:28]}  Nb6 {[%clk 0:01:48]} 24. Rad1 {[%clk 0:02:27]}  Rd7 {[%clk 0:01:45]} 25. b3 {[%clk 0:02:01]}  Re8 {[%clk 0:01:36]} 26. Nf4 {[%clk 0:01:56]}  Kg8 {[%clk 0:01:31]} 27. Ne2 {[%clk 0:01:50]}  d5 {[%clk 0:01:24]} 28. cxd5 {[%clk 0:01:50]}  Rxd5 {[%clk 0:01:23]} 29. Rc1 {[%clk 0:01:24]}  Rxd2 {[%clk 0:01:09]} 30. Qxd2 {[%clk 0:01:25]}  Rc8 {[%clk 0:01:10]} 31. h4 {[%clk 0:01:24]}  Qe6 {[%clk 0:01:04]} 32. Qa5 {[%clk 0:01:17]}  c4 {[%clk 0:00:51]} 33. bxc4 {[%clk 0:01:05]}  Rxc4 {[%clk 0:00:50]} 34. Rxc4 {[%clk 0:01:04]}  Qxc4 {[%clk 0:00:50]} 35. Qxa7 {[%clk 0:01:03]}  Qxe2 {[%clk 0:00:38]} 36. Qxb6 {[%clk 0:01:03]}  Qe1+ {[%clk 0:00:38]} 37. Kh2 {[%clk 0:00:57]}  Qxf2 {[%clk 0:00:38]} 38. Qb8+ {[%clk 0:00:57]}  Kg7 {[%clk 0:00:39]} 39. Qxe5+ {[%clk 0:00:58]}  Kg8 {[%clk 0:00:39]} 40. Qe8+ {[%clk 0:00:36]}  Kg7 {[%clk 0:00:39]} 41. Qe5+ {[%clk 0:00:37]}  Kg8 {[%clk 0:00:40]} 42. Qe8+ {[%clk 0:00:36]}  Kg7 {[%clk 0:00:40]} 43. Qe5+ {[%clk 0:00:36]} 1/2-1/2


[Site "https://www.chess.com"]

[Event "Titled Tuesday Blitz October 19 2021"]
[White "Di Nicolantonio, Lucas"]
[Black "Bortnyk, Olexandr"]
[WhiteFideId "680460"]
[BlackFideId "14120828"]
[WhiteElo "2381"]
[BlackElo "2723"]
[Result "1-0"]
[Round "01"]
[TimeControl "180+1"]
[Date "2021.10.19"]
[WhiteClock "0:00:30"]
[BlackClock "0:00:05"]

1. e4 {[%clk 0:02:58]}  Nf6 {[%clk 0:02:56]} 2. Nc3 {[%clk 0:02:58]}  d5 {[%clk 0:02:55]} 3. exd5 {[%clk 0:02:59]}  Nxd5 {[%clk 0:02:56]} 4. Bc4 {[%clk 0:02:59]}  Nb6 {[%clk 0:02:56]} 5. Bb3 {[%clk 0:03:00]}  c5 {[%clk 0:02:56]} 6. d3 {[%clk 0:02:58]}  Nc6 {[%clk 0:02:53]} 7. Qf3 {[%clk 0:02:57]}  e6 {[%clk 0:02:51]} 8. Nge2 {[%clk 0:02:58]}  Bd6 {[%clk 0:02:44]} 9. Ne4 {[%clk 0:02:50]}  Be7 {[%clk 0:02:38]} 10. Qg3 {[%clk 0:02:47]}  O-O {[%clk 0:02:11]} 11. Bh6 {[%clk 0:02:45]}  Bf6 {[%clk 0:02:10]} 12. O-O-O {[%clk 0:02:32]}  Kh8 {[%clk 0:02:06]} 13. Bf4 {[%clk 0:02:31]}  a5 {[%clk 0:02:03]} 14. Bc7 {[%clk 0:02:31]}  Qd7 {[%clk 0:01:40]} 15. Bxb6 {[%clk 0:02:31]}  a4 {[%clk 0:01:40]} 16. Bc4 {[%clk 0:02:27]}  a3 {[%clk 0:01:40]} 17. Nxf6 {[%clk 0:02:20]}  axb2+ {[%clk 0:01:40]} 18. Kb1 {[%clk 0:02:19]}  gxf6 {[%clk 0:01:40]} 19. Bxc5 {[%clk 0:02:10]}  Rg8 {[%clk 0:01:38]} 20. Qf4 {[%clk 0:02:06]}  Rg6 {[%clk 0:01:35]} 21. h4 {[%clk 0:02:00]}  e5 {[%clk 0:01:32]} 22. Qf3 {[%clk 0:01:50]}  b5 {[%clk 0:01:29]} 23. Bd5 {[%clk 0:01:35]}  Bb7 {[%clk 0:01:22]} 24. h5 {[%clk 0:01:35]}  Rg7 {[%clk 0:01:19]} 25. h6 {[%clk 0:01:29]}  Rg6 {[%clk 0:01:19]} 26. Be4 {[%clk 0:01:28]}  Qe6 {[%clk 0:01:02]} 27. Nc3 {[%clk 0:01:21]}  b4 {[%clk 0:00:56]} 28. Nd5 {[%clk 0:01:12]}  Nd8 {[%clk 0:00:39]} 29. Nxb4 {[%clk 0:01:09]}  Rg4 {[%clk 0:00:31]} 30. Bxb7 {[%clk 0:01:02]}  Ra5 {[%clk 0:00:10]} 31. Bd5 {[%clk 0:00:58]}  Qd7 {[%clk 0:00:07]} 32. Qxf6+ {[%clk 0:00:57]}  Kg8 {[%clk 0:00:08]} 33. Qd6 {[%clk 0:00:51]}  Qxd6 {[%clk 0:00:03]} 34. Bxd6 {[%clk 0:00:51]}  Rg6 {[%clk 0:00:03]} 35. Bxe5 {[%clk 0:00:47]}  Rb5 {[%clk 0:00:04]} 36. Bc3 {[%clk 0:00:42]}  Ne6 {[%clk 0:00:02]} 37. Bc4 {[%clk 0:00:41]}  Rb8 {[%clk 0:00:03]} 38. Nd5 {[%clk 0:00:38]}  Rb7 {[%clk 0:00:02]} 39. Nf6+ {[%clk 0:00:38]}  Kf8 {[%clk 0:00:02]} 40. Nxh7+ {[%clk 0:00:37]}  Ke7 {[%clk 0:00:03]} 41. Nf6 {[%clk 0:00:36]}  Nc5 {[%clk 0:00:03]} 42. h7 {[%clk 0:00:34]}  Na4 {[%clk 0:00:04]} 43. Nd5+ {[%clk 0:00:34]}  Kd6 {[%clk 0:00:04]} 44. h8=Q {[%clk 0:00:32]}  f6 {[%clk 0:00:05]} 45. Qd8+ {[%clk 0:00:31]}  Kc6 {[%clk 0:00:05]} 46. Nb4+ {[%clk 0:00:30]} 1-0


[Site "https://www.chess.com"]

[Event "Titled Tuesday Blitz October 19 2021"]
[White "Dzhaparov, Medet"]
[Black "Zhigalko, Sergei"]
[WhiteFideId "13803689"]
[BlackFideId "13502956"]
[WhiteElo "1702"]
[BlackElo "2662"]
[Result "0-1"]
[Round "01"]
[TimeControl "180+1"]
[Date "2021.10.19"]
[WhiteClock "0:00:01"]
[BlackClock "0:00:05"]

1. d4 {[%clk 0:02:58]}  Nf6 {[%clk 0:03:00]} 2. c4 {[%clk 0:02:58]}  e6 {[%clk 0:02:59]} 3. Nc3 {[%clk 0:02:58]}  Bb4 {[%clk 0:02:59]} 4. Qc2 {[%clk 0:02:58]}  O-O {[%clk 0:02:57]} 5. a3 {[%clk 0:02:59]}  Bxc3+ {[%clk 0:02:57]} 6. Qxc3 {[%clk 0:02:59]}  d6 {[%clk 0:02:58]} 7. Bg5 {[%clk 0:02:58]}  Nbd7 {[%clk 0:02:58]} 8. e3 {[%clk 0:02:59]}  b6 {[%clk 0:02:58]} 9. Ne2 {[%clk 0:02:59]}  Bb7 {[%clk 0:02:57]} 10. Rd1 {[%clk 0:02:59]}  Re8 {[%clk 0:02:48]} 11. Qc2 {[%clk 0:02:57]}  Nf8 {[%clk 0:02:36]} 12. Nc3 {[%clk 0:02:19]}  Ng6 {[%clk 0:02:34]} 13. f3 {[%clk 0:01:50]}  h6 {[%clk 0:02:33]} 14. Bxf6 {[%clk 0:01:50]}  Qxf6 {[%clk 0:02:34]} 15. Bd3 {[%clk 0:01:48]}  Nh4 {[%clk 0:02:00]} 16. O-O {[%clk 0:01:00]}  Qg5 {[%clk 0:01:43]} 17. Kh1 {[%clk 0:01:00]}  Qxe3 {[%clk 0:01:35]} 18. Be4 {[%clk 0:00:59]}  Bxe4 {[%clk 0:01:04]} 19. Nxe4 {[%clk 0:00:44]}  d5 {[%clk 0:00:58]} 20. Ng3 {[%clk 0:00:14]}  Qg5 {[%clk 0:00:19]} 21. f4 {[%clk 0:00:11]}  Qg6 {[%clk 0:00:18]} 22. Qc3 {[%clk 0:00:08]}  c6 {[%clk 0:00:15]} 23. Rfe1 {[%clk 0:00:05]}  Rac8 {[%clk 0:00:13]} 24. b4 {[%clk 0:00:04]}  dxc4 {[%clk 0:00:13]} 25. Qxc4 {[%clk 0:00:05]}  Red8 {[%clk 0:00:13]} 26. Rd2 {[%clk 0:00:04]}  c5 {[%clk 0:00:11]} 27. bxc5 {[%clk 0:00:04]}  bxc5 {[%clk 0:00:11]} 28. d5 {[%clk 0:00:04]}  exd5 {[%clk 0:00:07]} 29. Rxd5 {[%clk 0:00:05]}  Rxd5 {[%clk 0:00:07]} 30. Qxd5 {[%clk 0:00:06]}  Qc6 {[%clk 0:00:06]} 31. Qd2 {[%clk 0:00:04]}  c4 {[%clk 0:00:06]} 32. Rc1 {[%clk 0:00:03]}  c3 {[%clk 0:00:06]} 33. Qf2 {[%clk 0:00:03]}  c2 {[%clk 0:00:05]} 34. Ne2 {[%clk 0:00:02]}  Nf5 {[%clk 0:00:05]} 35. Nd4 {[%clk 0:00:02]}  Nxd4 {[%clk 0:00:04]} 36. Qxd4 {[%clk 0:00:03]}  Qe6 {[%clk 0:00:02]} 37. Qd2 {[%clk 0:00:03]}  Qc4 {[%clk 0:00:02]} 38. h3 {[%clk 0:00:03]}  Qc5 {[%clk 0:00:03]} 39. Kh2 {[%clk 0:00:02]}  a5 {[%clk 0:00:03]} 40. a4 {[%clk 0:00:02]}  Qc7 {[%clk 0:00:03]} 41. g3 {[%clk 0:00:02]}  g6 {[%clk 0:00:03]} 42. Kg2 {[%clk 0:00:03]}  h5 {[%clk 0:00:04]} 43. Kh2 {[%clk 0:00:03]}  Qc6 {[%clk 0:00:04]} 44. h4 {[%clk 0:00:02]}  Qxa4 {[%clk 0:00:04]} 45. Qd6 {[%clk 0:00:01]}  Qc6 {[%clk 0:00:05]} 46. Qd2 {[%clk 0:00:01]}  Qc3 {[%clk 0:00:05]} 47. Qd5 {[%clk 0:00:01]}  Qc5 {[%clk 0:00:04]} 48. Qd2 {[%clk 0:00:01]}  a4 {[%clk 0:00:05]} 49. Qe2 {[%clk 0:00:01]}  a3 {[%clk 0:00:05]} 50. Ra1 {[%clk 0:00:01]}  c1=Q {[%clk 0:00:05]} 0-1


[Site "https://www.chess.com"]

[Event "Titled Tuesday Blitz October 19 2021"]
[White "Galego, Luis"]
[Black "Obregon, Andres Carlos"]
[WhiteFideId "1900072"]
[BlackFideId "111724"]
[WhiteElo "2516"]
[BlackElo "2572"]
[Result "0-1"]
[Round "01"]
[TimeControl "180+1"]
[Date "2021.10.19"]
[WhiteClock "0:00:29"]
[BlackClock "0:01:25"]

1. e4 {[%clk 0:02:58]}  c6 {[%clk 0:02:58]} 2. Nc3 {[%clk 0:02:57]}  d5 {[%clk 0:02:55]} 3. Nf3 {[%clk 0:02:57]}  g6 {[%clk 0:02:47]} 4. exd5 {[%clk 0:02:55]}  cxd5 {[%clk 0:02:45]} 5. Bb5+ {[%clk 0:02:56]}  Nc6 {[%clk 0:02:41]} 6. Ne5 {[%clk 0:02:47]}  Bd7 {[%clk 0:02:37]} 7. Nxd7 {[%clk 0:02:34]}  Qxd7 {[%clk 0:02:35]} 8. O-O {[%clk 0:02:04]}  Bg7 {[%clk 0:02:32]} 9. Qf3 {[%clk 0:02:03]}  e6 {[%clk 0:02:27]} 10. Re1 {[%clk 0:02:01]}  Nge7 {[%clk 0:02:25]} 11. d3 {[%clk 0:01:59]}  a6 {[%clk 0:02:15]} 12. Ba4 {[%clk 0:01:59]}  b5 {[%clk 0:02:12]} 13. Bb3 {[%clk 0:01:58]}  Nd4 {[%clk 0:02:09]} 14. Qh3 {[%clk 0:01:57]}  h5 {[%clk 0:02:05]} 15. Bg5 {[%clk 0:01:55]}  Ndf5 {[%clk 0:01:44]} 16. Bxe7 {[%clk 0:01:47]}  Nxe7 {[%clk 0:01:43]} 17. a4 {[%clk 0:01:22]}  b4 {[%clk 0:01:42]} 18. Na2 {[%clk 0:01:22]}  Bxb2 {[%clk 0:01:37]} 19. Rab1 {[%clk 0:01:21]}  Bg7 {[%clk 0:01:36]} 20. Nxb4 {[%clk 0:01:20]}  Bc3 {[%clk 0:01:35]} 21. Na2 {[%clk 0:00:55]}  Bxe1 {[%clk 0:01:34]} 22. Rxe1 {[%clk 0:00:55]}  Rd8 {[%clk 0:01:33]} 23. Nc3 {[%clk 0:00:54]}  O-O {[%clk 0:01:32]} 24. Ne2 {[%clk 0:00:51]}  e5 {[%clk 0:01:30]} 25. Qh4 {[%clk 0:00:44]}  Nf5 {[%clk 0:01:29]} 26. Qf6 {[%clk 0:00:44]}  Qd6 {[%clk 0:01:28]} 27. Qg5 {[%clk 0:00:44]}  Kg7 {[%clk 0:01:27]} 28. Nc3 {[%clk 0:00:44]}  f6 {[%clk 0:01:27]} 29. Qc1 {[%clk 0:00:41]}  Ne7 {[%clk 0:01:27]} 30. f4 {[%clk 0:00:29]}  Qc5+ {[%clk 0:01:25]} 0-1


[Site "https://www.chess.com"]

[Event "Titled Tuesday Blitz October 19 2021"]
[White "Gubajdullin, Alexei"]
[Black "Sanal, Vahap"]
[WhiteFideId "4141202"]
[BlackFideId "6300545"]
[WhiteElo "2268"]
[BlackElo "2492"]
[Result "0-1"]
[Round "01"]
[TimeControl "180+1"]
[Date "2021.10.19"]
[WhiteClock "0:00:38"]
[BlackClock "0:01:43"]

1. d4 {[%clk 0:02:59]}  Nf6 {[%clk 0:02:56]} 2. Nf3 {[%clk 0:02:58]}  g6 {[%clk 0:02:53]} 3. Bf4 {[%clk 0:02:57]}  Bg7 {[%clk 0:02:53]} 4. e3 {[%clk 0:02:57]}  O-O {[%clk 0:02:54]} 5. Be2 {[%clk 0:02:56]}  d6 {[%clk 0:02:54]} 6. O-O {[%clk 0:02:55]}  Nbd7 {[%clk 0:02:52]} 7. h3 {[%clk 0:02:52]}  b6 {[%clk 0:02:52]} 8. a4 {[%clk 0:02:51]}  a6 {[%clk 0:02:52]} 9. a5 {[%clk 0:02:49]}  Bb7 {[%clk 0:02:48]} 10. c3 {[%clk 0:02:43]}  b5 {[%clk 0:02:46]} 11. Nbd2 {[%clk 0:02:40]}  c5 {[%clk 0:02:45]} 12. Bh2 {[%clk 0:02:38]}  Qc7 {[%clk 0:02:44]} 13. Re1 {[%clk 0:02:30]}  e5 {[%clk 0:02:42]} 14. dxe5 {[%clk 0:02:22]}  dxe5 {[%clk 0:02:41]} 15. Qc2 {[%clk 0:02:22]}  Rfe8 {[%clk 0:02:41]} 16. e4 {[%clk 0:02:22]}  c4 {[%clk 0:02:39]} 17. Bf1 {[%clk 0:01:58]}  Nc5 {[%clk 0:02:38]} 18. Re3 {[%clk 0:01:58]}  Nh5 {[%clk 0:02:33]} 19. b4 {[%clk 0:01:56]}  cxb3 {[%clk 0:02:33]} 20. Nxb3 {[%clk 0:01:56]}  Nf4 {[%clk 0:02:33]} 21. c4 {[%clk 0:01:45]}  b4 {[%clk 0:02:32]} 22. Nxc5 {[%clk 0:01:41]}  Qxc5 {[%clk 0:02:32]} 23. Rb3 {[%clk 0:01:41]}  Bc6 {[%clk 0:02:27]} 24. Qb1 {[%clk 0:01:36]}  Rab8 {[%clk 0:02:25]} 25. Ra2 {[%clk 0:01:32]}  Rb7 {[%clk 0:02:16]} 26. Ne1 {[%clk 0:01:26]}  Qd4 {[%clk 0:02:10]} 27. Re3 {[%clk 0:01:02]}  h6 {[%clk 0:01:49]} 28. Rb2 {[%clk 0:00:54]}  Reb8 {[%clk 0:01:49]} 29. Nc2 {[%clk 0:00:52]}  Qc5 {[%clk 0:01:49]} 30. Qa2 {[%clk 0:00:47]}  Ne6 {[%clk 0:01:44]} 31. f3 {[%clk 0:00:38]}  b3 {[%clk 0:01:43]} 0-1


[Site "https://www.chess.com"]

[Event "Titled Tuesday Blitz October 19 2021"]
[White "Hasman, Cengiz"]
[Black "Jobava, Baadur"]
[WhiteFideId "413364"]
[BlackFideId "13601520"]
[WhiteElo "2020"]
[BlackElo "2731"]
[Result "0-1"]
[Round "01"]
[TimeControl "180+1"]
[Date "2021.10.19"]
[WhiteClock "0:00:01"]
[BlackClock "0:01:49"]

1. d4 {[%clk 0:02:33]}  Nf6 {[%clk 0:02:35]} 2. c4 {[%clk 0:02:33]}  c5 {[%clk 0:02:36]} 3. d5 {[%clk 0:02:32]}  e6 {[%clk 0:02:36]} 4. Nc3 {[%clk 0:02:32]}  exd5 {[%clk 0:02:37]} 5. cxd5 {[%clk 0:02:33]}  d6 {[%clk 0:02:38]} 6. e4 {[%clk 0:02:33]}  g6 {[%clk 0:02:39]} 7. f4 {[%clk 0:02:33]}  Bh6 {[%clk 0:02:38]} 8. Bb5+ {[%clk 0:02:24]}  Bd7 {[%clk 0:02:37]} 9. Bd3 {[%clk 0:02:12]}  O-O {[%clk 0:02:35]} 10. Nf3 {[%clk 0:02:12]}  Bg4 {[%clk 0:02:35]} 11. O-O {[%clk 0:02:12]}  Nbd7 {[%clk 0:02:35]} 12. h3 {[%clk 0:02:10]}  Bxf3 {[%clk 0:02:35]} 13. Qxf3 {[%clk 0:02:11]}  Re8 {[%clk 0:02:30]} 14. Be3 {[%clk 0:01:43]}  a6 {[%clk 0:02:28]} 15. a4 {[%clk 0:01:42]}  Rc8 {[%clk 0:02:28]} 16. g4 {[%clk 0:01:34]}  Bg7 {[%clk 0:02:28]} 17. Bf2 {[%clk 0:01:31]}  c4 {[%clk 0:02:27]} 18. Bc2 {[%clk 0:01:31]}  Nc5 {[%clk 0:02:27]} 19. Bd4 {[%clk 0:01:09]}  Nfd7 {[%clk 0:02:21]} 20. Bxg7 {[%clk 0:01:08]}  Kxg7 {[%clk 0:02:21]} 21. Rae1 {[%clk 0:00:54]}  Qb6 {[%clk 0:02:21]} 22. Kh1 {[%clk 0:00:43]}  Qxb2 {[%clk 0:02:16]} 23. e5 {[%clk 0:00:41]}  Qxc2 {[%clk 0:02:14]} 24. e6 {[%clk 0:00:33]}  Nf6 {[%clk 0:01:59]} 25. f5 {[%clk 0:00:30]}  g5 {[%clk 0:02:00]} 26. h4 {[%clk 0:00:28]}  h6 {[%clk 0:01:59]} 27. Re3 {[%clk 0:00:23]}  Nd3 {[%clk 0:01:56]} 28. Ne4 {[%clk 0:00:18]}  Nxe4 {[%clk 0:01:55]} 29. Qxe4 {[%clk 0:00:19]}  Nf2+ {[%clk 0:01:54]} 30. Rxf2 {[%clk 0:00:18]}  Qxf2 {[%clk 0:01:55]} 31. f6+ {[%clk 0:00:15]}  Qxf6 {[%clk 0:01:54]} 32. Rf3 {[%clk 0:00:15]}  Qa1+ {[%clk 0:01:54]} 33. Kg2 {[%clk 0:00:15]}  Rc7 {[%clk 0:01:48]} 34. exf7 {[%clk 0:00:08]}  Qb2+ {[%clk 0:01:48]} 35. Kh3 {[%clk 0:00:07]}  Rxf7 {[%clk 0:01:47]} 36. Rxf7+ {[%clk 0:00:04]}  Kxf7 {[%clk 0:01:48]} 37. Qh7+ {[%clk 0:00:05]}  Qg7 {[%clk 0:01:48]} 38. Qf5+ {[%clk 0:00:04]}  Qf6 {[%clk 0:01:48]} 39. Qh7+ {[%clk 0:00:04]}  Kf8 {[%clk 0:01:49]} 40. hxg5 {[%clk 0:00:04]}  Re3+ {[%clk 0:01:49]} 41. Kg2 {[%clk 0:00:01]}  Qf3+ {[%clk 0:01:49]} 0-1


[Site "https://www.chess.com"]

[Event "Titled Tuesday Blitz October 19 2021"]
[White "Holt, Conrad"]
[Black "Kubicka, Anna"]
[WhiteFideId "2034387"]
[BlackFideId "1152254"]
[WhiteElo "2586"]
[BlackElo "1903"]
[Result "1-0"]
[Round "01"]
[TimeControl "180+1"]
[Date "2021.10.19"]
[WhiteClock "0:00:05"]
[BlackClock "0:00:03"]

1. d4 {[%clk 0:03:00]}  Nf6 {[%clk 0:02:59]} 2. c4 {[%clk 0:02:57]}  e6 {[%clk 0:03:00]} 3. Nc3 {[%clk 0:02:58]}  Bb4 {[%clk 0:02:59]} 4. Qc2 {[%clk 0:02:58]}  O-O {[%clk 0:02:59]} 5. e4 {[%clk 0:02:58]}  c5 {[%clk 0:02:57]} 6. e5 {[%clk 0:02:53]}  Ne8 {[%clk 0:02:55]} 7. a3 {[%clk 0:02:51]}  Ba5 {[%clk 0:02:50]} 8. dxc5 {[%clk 0:02:49]}  Bc7 {[%clk 0:02:38]} 9. Nf3 {[%clk 0:02:47]}  Nc6 {[%clk 0:02:38]} 10. Ng5 {[%clk 0:02:43]}  g6 {[%clk 0:02:35]} 11. f4 {[%clk 0:02:42]}  f6 {[%clk 0:02:27]} 12. exf6 {[%clk 0:02:34]}  Qxf6 {[%clk 0:02:18]} 13. g3 {[%clk 0:02:29]}  d6 {[%clk 0:01:38]} 14. Be3 {[%clk 0:02:24]}  Nd4 {[%clk 0:01:16]} 15. Bxd4 {[%clk 0:02:15]}  Qxd4 {[%clk 0:01:17]} 16. Bd3 {[%clk 0:02:15]}  Qe3+ {[%clk 0:01:07]} 17. Kd1 {[%clk 0:02:03]}  e5 {[%clk 0:00:50]} 18. Re1 {[%clk 0:01:32]}  Bg4+ {[%clk 0:00:49]} 19. Be2 {[%clk 0:01:32]}  Bxe2+ {[%clk 0:00:46]} 20. Rxe2 {[%clk 0:01:30]}  Qd4+ {[%clk 0:00:28]} 21. Kc1 {[%clk 0:01:30]}  exf4 {[%clk 0:00:19]} 22. Ne6 {[%clk 0:01:06]}  Qg1+ {[%clk 0:00:19]} 23. Qd1 {[%clk 0:01:02]}  Qxd1+ {[%clk 0:00:19]} 24. Kxd1 {[%clk 0:01:02]}  f3 {[%clk 0:00:19]} 25. Rd2 {[%clk 0:00:49]}  Rf7 {[%clk 0:00:12]} 26. Nxc7 {[%clk 0:00:36]}  Nxc7 {[%clk 0:00:12]} 27. cxd6 {[%clk 0:00:35]}  f2 {[%clk 0:00:09]} 28. Ke2 {[%clk 0:00:34]}  Re8+ {[%clk 0:00:09]} 29. Kf1 {[%clk 0:00:34]}  Ne6 {[%clk 0:00:07]} 30. d7 {[%clk 0:00:32]}  Rd8 {[%clk 0:00:06]} 31. Rad1 {[%clk 0:00:32]}  Nc5 {[%clk 0:00:05]} 32. Rxf2 {[%clk 0:00:29]}  Rdxd7 {[%clk 0:00:04]} 33. Rxd7 {[%clk 0:00:25]}  Rxd7 {[%clk 0:00:05]} 34. Nd5 {[%clk 0:00:22]}  Kg7 {[%clk 0:00:04]} 35. b4 {[%clk 0:00:14]}  Nd3 {[%clk 0:00:03]} 36. Rc2 {[%clk 0:00:05]}  Ne5 {[%clk 0:00:02]} 37. Ne3 {[%clk 0:00:05]}  Rd3 {[%clk 0:00:01]} 38. Ke2 {[%clk 0:00:06]}  Rxa3 {[%clk 0:00:02]} 39. c5 {[%clk 0:00:06]}  Rb3 {[%clk 0:00:02]} 40. Ra2 {[%clk 0:00:05]}  Rxb4 {[%clk 0:00:02]} 41. Rxa7 {[%clk 0:00:05]}  Kf6 {[%clk 0:00:03]} 42. Ra2 {[%clk 0:00:05]}  Rb2+ {[%clk 0:00:03]} 43. Rxb2 {[%clk 0:00:05]} 1-0


[Site "https://www.chess.com"]